[Event "*** Titled Tuesday 3|2 Blitz"]
[Site "Chess.com"]
[Date "2016.04.05"]
[Round "1"]
[White "Keranke"]
[Black "Saitama_Hero"]
[Result "1-0"]
[WhiteElo "2562"]
[BlackElo "2255"]
[TimeControl "180+2"]
[EndTime "11:35:04 PDT"]
[Termination "Keranke won by resignation"]

1. d4 {[%clk 0:02:59.2]} 1... Nf6 {[%clk 0:02:58]} 2. c4 {[%clk 0:02:59.9]} 2...
g6 {[%clk 0:02:59.4]} 3. g3 {[%clk 0:03:00.7]} 3... Bg7 {[%clk 0:02:57.4]} 4.
Bg2 {[%clk 0:03:01.7]} 4... O-O {[%clk 0:02:57.8]} 5. Nf3 {[%clk 0:03:02.3]}
5... d6 {[%clk 0:02:59.2]} 6. O-O {[%clk 0:03:03.2]} 6... Nc6 {[%clk 0:03:00.7]}
7. Nc3 {[%clk 0:03:03.7]} 7... a6 {[%clk 0:03:02.3]} 8. Bf4 {[%clk 0:03:04.2]}
8... Rb8 {[%clk 0:03:00.7]} 9. Rc1 {[%clk 0:02:58.5]} 9... Bd7 {[%clk
0:02:48.4]} 10. Qd2 {[%clk 0:02:58.8]} 10... b5 {[%clk 0:02:46.5]} 11. Nd5
{[%clk 0:02:59.6]} 11... bxc4 {[%clk 0:02:34.1]} 12. Nxf6+ {[%clk 0:02:57.9]}
12... Bxf6 {[%clk 0:02:35.5]} 13. Rxc4 {[%clk 0:02:59.2]} 13... e5 {[%clk
0:02:28.6]} 14. dxe5 {[%clk 0:03:01.1]} 14... dxe5 {[%clk 0:02:25.5]} 15. Bh6
{[%clk 0:02:59.3]} 15... Re8 {[%clk 0:02:27]} 16. Rd1 {[%clk 0:02:56.1]} 16...
Nd4 {[%clk 0:02:22.1]} 17. Nxd4 {[%clk 0:02:52.7]} 17... exd4 {[%clk 0:02:23.2]}
18. Rxd4 {[%clk 0:02:53.8]} 18... Re7 {[%clk 0:01:51.9]} 19. Rxd7 {[%clk
0:02:53.3]} 1-0

[Event "*** Titled Tuesday 3|2 Blitz"]
[Site "Chess.com"]
[Date "2016.04.05"]
[Round "1"]
[White "Izoria123"]
[Black "Er_is_geen_hoop_meer"]
[Result "1-0"]
[WhiteElo "2593"]
[BlackElo "2296"]
[TimeControl "180+2"]
[EndTime "11:36:11 PDT"]
[Termination "Izoria123 won by resignation"]

1. d4 {[%clk 0:02:58.2]} 1... Nf6 {[%clk 0:03:00.5]} 2. Nf3 {[%clk 0:02:57.1]}
2... g6 {[%clk 0:03:01.1]} 3. Bf4 {[%clk 0:02:54.5]} 3... Bg7 {[%clk 0:03:02.5]}
4. e3 {[%clk 0:02:54.9]} 4... O-O {[%clk 0:03:04.4]} 5. h3 {[%clk 0:02:54.3]}
5... b6 {[%clk 0:03:04.7]} 6. Be2 {[%clk 0:02:52.7]} 6... Bb7 {[%clk 0:03:06]}
7. O-O {[%clk 0:02:52.9]} 7... c5 {[%clk 0:03:07.1]} 8. c3 {[%clk 0:02:51.5]}
8... cxd4 {[%clk 0:03:07.9]} 9. cxd4 {[%clk 0:02:50.3]} 9... d6 {[%clk
0:03:07.9]} 10. Nc3 {[%clk 0:02:50.5]} 10... Ne4 {[%clk 0:03:06.6]} 11. Rc1
{[%clk 0:02:44.5]} 11... Nd7 {[%clk 0:03:07.4]} 12. Nxe4 {[%clk 0:02:42.2]}
12... Bxe4 {[%clk 0:03:09.3]} 13. Qa4 {[%clk 0:02:32.1]} 13... Nf6 {[%clk
0:03:06.6]} 14. Ba6 {[%clk 0:02:24.3]} 14... Nd5 {[%clk 0:02:57.9]} 15. Bh2
{[%clk 0:02:23.3]} 15... Bxf3 {[%clk 0:02:58.1]} 16. gxf3 {[%clk 0:02:23.6]}
16... Rb8 {[%clk 0:02:58]} 17. a3 {[%clk 0:02:13.9]} 17... e5 {[%clk 0:02:59]}
18. dxe5 {[%clk 0:02:13.8]} 18... dxe5 {[%clk 0:03:00.9]} 19. Rfd1 {[%clk
0:02:08.7]} 19... Qg5+ {[%clk 0:02:54.7]} 20. Qg4 {[%clk 0:02:09]} 20... Qxg4+
{[%clk 0:02:56.2]} 21. fxg4 {[%clk 0:01:56.1]} 21... Rfd8 {[%clk 0:02:58.1]} 22.
Bc4 {[%clk 0:01:44.3]} 22... Ne7 {[%clk 0:02:58.6]} 23. Bb3 {[%clk 0:01:44.8]}
23... Kf8 {[%clk 0:02:57.7]} 24. Rxd8+ {[%clk 0:01:43]} 24... Rxd8 {[%clk
0:02:59.6]} 25. Rc7 {[%clk 0:01:43.5]} 25... a5 {[%clk 0:02:56.9]} 26. Rb7
{[%clk 0:01:44]} 26... Nc8 {[%clk 0:02:56.4]} 27. Rxf7+ {[%clk 0:01:44.1]} 27...
Ke8 {[%clk 0:02:48.2]} 28. Rxg7 {[%clk 0:01:44.1]} 28... Rd2 {[%clk 0:02:50.1]}
29. Bxe5 {[%clk 0:01:43]} 29... b5 {[%clk 0:02:51.1]} 30. Bc3 {[%clk 0:01:37.7]}
30... Rd6 {[%clk 0:02:49.9]} 31. Bxa5 {[%clk 0:01:37.3]} 1-0

[Event "*** Titled Tuesday 3|2 Blitz"]
[Site "Chess.com"]
[Date "2016.04.05"]
[Round "1"]
[White "Anton_Demchenko"]
[Black "TomsKantans"]
[Result "1-0"]
[WhiteElo "2663"]
[BlackElo "2354"]
[TimeControl "180+2"]
[EndTime "11:36:42 PDT"]
[Termination "Anton_Demchenko won by resignation"]

1. e4 {[%clk 0:03:01.9]} 1... c5 {[%clk 0:02:42.6]} 2. Nf3 {[%clk 0:03:02]} 2...
Nf6 {[%clk 0:02:44]} 3. Nc3 {[%clk 0:03:01.5]} 3... Nc6 {[%clk 0:02:44.4]} 4.
Bb5 {[%clk 0:03:00.6]} 4... Qc7 {[%clk 0:02:45.3]} 5. O-O {[%clk 0:03:00.6]}
5... Nd4 {[%clk 0:02:46.5]} 6. Re1 {[%clk 0:03:00.3]} 6... a6 {[%clk 0:02:48.2]}
7. Bc4 {[%clk 0:02:58.1]} 7... d6 {[%clk 0:02:49]} 8. h3 {[%clk 0:02:55.6]} 8...
g6 {[%clk 0:02:49.9]} 9. d3 {[%clk 0:02:55.3]} 9... Bg7 {[%clk 0:02:50.1]} 10.
Bf4 {[%clk 0:02:49.2]} 10... e5 {[%clk 0:02:32.4]} 11. Bg5 {[%clk 0:02:48.6]}
11... Be6 {[%clk 0:02:34.1]} 12. Bxf6 {[%clk 0:02:43.3]} 12... Bxf6 {[%clk
0:02:33.9]} 13. Nd5 {[%clk 0:02:44.7]} 13... Bxd5 {[%clk 0:02:25.7]} 14. Bxd5
{[%clk 0:02:45.8]} 14... O-O {[%clk 0:02:25.4]} 15. c3 {[%clk 0:02:43.2]} 15...
Nxf3+ {[%clk 0:02:25.2]} 16. Qxf3 {[%clk 0:02:43.9]} 16... Kg7 {[%clk
0:02:25.4]} 17. g3 {[%clk 0:02:40.2]} 17... Rab8 {[%clk 0:02:23.9]} 18. a4
{[%clk 0:02:40.6]} 18... b6 {[%clk 0:02:23.9]} 19. h4 {[%clk 0:02:40.5]} 19...
h6 {[%clk 0:02:20.3]} 20. h5 {[%clk 0:02:38.1]} 20... g5 {[%clk 0:02:16.5]} 21.
Bc4 {[%clk 0:02:34.2]} 21... b5 {[%clk 0:02:14.3]} 22. axb5 {[%clk 0:02:35]}
22... axb5 {[%clk 0:01:58.8]} 23. Bd5 {[%clk 0:02:36.2]} 23... Be7 {[%clk
0:01:53.2]} 24. Ra6 {[%clk 0:02:32.6]} 24... Rb6 {[%clk 0:01:41.2]} 25. Ra2
{[%clk 0:02:30.7]} 25... b4 {[%clk 0:01:34.4]} 26. c4 {[%clk 0:02:25.4]} 1-0

[Event "*** Titled Tuesday 3|2 Blitz"]
[Site "Chess.com"]
[Date "2016.04.05"]
[Round "1"]
[White "SmarterChess"]
[Black "JustaTrickstar"]
[Result "0-1"]
[WhiteElo "2135"]
[BlackElo "2456"]
[TimeControl "180+2"]
[EndTime "11:37:10 PDT"]
[Termination "JustaTrickstar won by resignation"]

1. e4 {[%clk 0:03:00.3]} 1... c5 {[%clk 0:03:00.5]} 2. Nf3 {[%clk 0:02:59.6]}
2... Nc6 {[%clk 0:03:01.8]} 3. d4 {[%clk 0:02:43]} 3... cxd4 {[%clk 0:03:03.7]}
4. Nxd4 {[%clk 0:02:41.5]} 4... Nf6 {[%clk 0:03:04.8]} 5. Nc3 {[%clk 0:02:41.8]}
5... d6 {[%clk 0:03:04.6]} 6. Bb5 {[%clk 0:02:35.6]} 6... Bd7 {[%clk 0:03:04.1]}
7. Bxc6 {[%clk 0:02:35.4]} 7... bxc6 {[%clk 0:03:00.4]} 8. O-O {[%clk
0:02:35.9]} 8... g6 {[%clk 0:02:59.7]} 9. Bg5 {[%clk 0:02:28.7]} 9... Bg7 {[%clk
0:02:58.8]} 10. Qd2 {[%clk 0:02:30.1]} 10... h6 {[%clk 0:02:57.8]} 11. Be3
{[%clk 0:02:28.9]} 11... Ng4 {[%clk 0:02:57]} 12. Bf4 {[%clk 0:02:30.1]} 12...
e5 {[%clk 0:02:52.9]} 13. h3 {[%clk 0:02:16.5]} 13... exd4 {[%clk 0:02:28.6]}
14. hxg4 {[%clk 0:02:07.6]} 14... dxc3 {[%clk 0:02:27]} 15. Qxd6 {[%clk
0:02:08.2]} 15... Qe7 {[%clk 0:02:22.9]} 16. bxc3 {[%clk 0:01:57.6]} 16... Qxd6
{[%clk 0:02:15.4]} 17. Bxd6 {[%clk 0:01:59.5]} 17... Bxg4 {[%clk 0:02:16.5]} 18.
f3 {[%clk 0:01:55.5]} 18... Be6 {[%clk 0:02:16.6]} 19. Rab1 {[%clk 0:01:55.1]}
19... Bf8 {[%clk 0:01:59.2]} 20. Be5 {[%clk 0:01:51.3]} 20... Bc5+ {[%clk
0:02:00]} 21. Kh1 {[%clk 0:01:46.6]} 21... O-O {[%clk 0:01:59.9]} 22. Rb7 {[%clk
0:01:46.8]} 22... Bxa2 {[%clk 0:01:55.3]} 23. g4 {[%clk 0:01:44.6]} 23... Rfd8
{[%clk 0:01:48.2]} 24. Kg2 {[%clk 0:01:44.6]} 24... Rd2+ {[%clk 0:01:43.7]} 25.
Kg3 {[%clk 0:01:46]} 25... Bd6 {[%clk 0:01:44.6]} 26. Bxd6 {[%clk 0:01:41.6]}
26... Rxd6 {[%clk 0:01:46.5]} 27. e5 {[%clk 0:01:41]} 27... Rd2 {[%clk
0:01:46.9]} 28. e6 {[%clk 0:01:41]} 28... Bxe6 {[%clk 0:01:47.4]} 29. Rh1 {[%clk
0:01:41]} 29... Rxc2 {[%clk 0:01:47.6]} 30. Rxh6 {[%clk 0:01:41.3]} 30... Rxc3
{[%clk 0:01:49]} 31. g5 {[%clk 0:01:40]} 31... Bd5 {[%clk 0:01:49.9]} 32. Kh4
{[%clk 0:01:38.4]} 32... Rxf3 {[%clk 0:01:50]} 0-1

[Event "*** Titled Tuesday 3|2 Blitz"]
[Site "Chess.com"]
[Date "2016.04.05"]
[Round "1"]
[White "Spas_Kozhuharov"]
[Black "Cecile_Haussernot"]
[Result "1-0"]
[WhiteElo "2479"]
[BlackElo "2162"]
[TimeControl "180+2"]
[EndTime "11:37:15 PDT"]
[Termination "Spas_Kozhuharov won by resignation"]

1. d4 {[%clk 0:02:58.2]} 1... Nf6 {[%clk 0:03:00.3]} 2. c4 {[%clk 0:02:58.6]}
2... e6 {[%clk 0:03:01.3]} 3. Nc3 {[%clk 0:03:00]} 3... Bb4 {[%clk 0:02:58.8]}
4. Qc2 {[%clk 0:03:00.3]} 4... O-O {[%clk 0:02:57.4]} 5. a3 {[%clk 0:02:59.5]}
5... Bxc3+ {[%clk 0:02:56.8]} 6. Qxc3 {[%clk 0:03:01.4]} 6... Ne4 {[%clk
0:02:55.1]} 7. Qc2 {[%clk 0:02:57.4]} 7... d5 {[%clk 0:02:54.7]} 8. Nf3 {[%clk
0:02:50.7]} 8... b6 {[%clk 0:02:52.8]} 9. g3 {[%clk 0:02:50.2]} 9... Ba6 {[%clk
0:02:51]} 10. cxd5 {[%clk 0:02:49.3]} 10... exd5 {[%clk 0:02:40.2]} 11. Bg2
{[%clk 0:02:48.8]} 11... Re8 {[%clk 0:02:37.4]} 12. O-O {[%clk 0:02:48.7]} 12...
c5 {[%clk 0:02:34.5]} 13. Rd1 {[%clk 0:02:41.1]} 13... c4 {[%clk 0:02:26.3]} 14.
Ne5 {[%clk 0:02:38.6]} 14... Nf6 {[%clk 0:02:13.6]} 15. Bg5 {[%clk 0:02:38]}
15... h6 {[%clk 0:02:13.6]} 16. Bxf6 {[%clk 0:02:38.2]} 16... gxf6 {[%clk
0:02:11.6]} 17. Ng4 {[%clk 0:02:38]} 17... Kg7 {[%clk 0:02:13.2]} 18. Ne3 {[%clk
0:02:34.4]} 18... Rxe3 {[%clk 0:01:59.4]} 19. fxe3 {[%clk 0:02:34.8]} 19... Nc6
{[%clk 0:01:59.8]} 20. e4 {[%clk 0:02:35.3]} 20... Ne7 {[%clk 0:01:55]} 21. exd5
{[%clk 0:02:25.2]} 21... Qd6 {[%clk 0:01:50.7]} 22. e4 {[%clk 0:02:24.5]} 22...
Rc8 {[%clk 0:01:44.6]} 23. Qc3 {[%clk 0:02:24.8]} 23... b5 {[%clk 0:01:40]} 24.
e5 {[%clk 0:02:25.4]} 24... Qb6 {[%clk 0:01:39.3]} 25. d6 {[%clk 0:02:24.9]}
25... Ng6 {[%clk 0:01:36.2]} 26. Kh1 {[%clk 0:02:21.8]} 26... Bb7 {[%clk
0:01:32.8]} 27. Rf1 {[%clk 0:02:15.6]} 27... fxe5 {[%clk 0:01:16]} 28. dxe5
{[%clk 0:02:14.1]} 28... Bxg2+ {[%clk 0:01:17.5]} 29. Kxg2 {[%clk 0:02:14.7]}
29... Qc6+ {[%clk 0:01:19]} 30. Kh3 {[%clk 0:02:12]} 30... Kh7 {[%clk
0:01:15.2]} 31. Rxf7+ {[%clk 0:02:09.4]} 31... Kg8 {[%clk 0:01:16.7]} 32. e6
{[%clk 0:02:08.2]} 1-0

[Event "*** Titled Tuesday 3|2 Blitz"]
[Site "Chess.com"]
[Date "2016.04.05"]
[Round "1"]
[White "KNVB"]
[Black "saraswathii"]
[Result "1-0"]
[WhiteElo "2382"]
[BlackElo "1966"]
[TimeControl "180+2"]
[EndTime "11:37:28 PDT"]
[Termination "KNVB won by resignation"]

1. d4 {[%clk 0:03:01.9]} 1... Nf6 {[%clk 0:02:57.9]} 2. c4 {[%clk 0:02:56.1]}
2... g6 {[%clk 0:02:54.6]} 3. Nc3 {[%clk 0:02:56]} 3... Bg7 {[%clk 0:02:55.3]}
4. e4 {[%clk 0:02:57]} 4... d6 {[%clk 0:02:53.7]} 5. f3 {[%clk 0:02:58.3]} 5...
O-O {[%clk 0:02:53.6]} 6. Be3 {[%clk 0:02:59.4]} 6... Nfd7 {[%clk 0:02:49]} 7.
Nge2 {[%clk 0:02:59.6]} 7... e5 {[%clk 0:02:46.5]} 8. Qd2 {[%clk 0:02:59.9]}
8... c6 {[%clk 0:02:46.9]} 9. O-O-O {[%clk 0:02:57.3]} 9... Na6 {[%clk
0:02:43.4]} 10. Kb1 {[%clk 0:02:57.1]} 10... Qe7 {[%clk 0:02:42]} 11. d5 {[%clk
0:02:45.9]} 11... c5 {[%clk 0:02:41]} 12. Nb5 {[%clk 0:02:39.9]} 12... Nb6
{[%clk 0:02:38.9]} 13. Nec3 {[%clk 0:02:36.8]} 13... Bd7 {[%clk 0:02:33.7]} 14.
Be2 {[%clk 0:02:24.2]} 14... Rfc8 {[%clk 0:02:15.9]} 15. h4 {[%clk 0:02:18.3]}
15... h5 {[%clk 0:02:12.1]} 16. g4 {[%clk 0:02:18.4]} 16... hxg4 {[%clk
0:02:09.2]} 17. fxg4 {[%clk 0:02:20.3]} 17... Nc7 {[%clk 0:02:04.2]} 18. Nxc7
{[%clk 0:02:18.5]} 18... Rxc7 {[%clk 0:02:04.9]} 19. h5 {[%clk 0:02:19.6]} 19...
Na4 {[%clk 0:01:57.6]} 20. Nxa4 {[%clk 0:02:09.5]} 20... Bxa4 {[%clk 0:01:56.5]}
21. Rdf1 {[%clk 0:02:10.4]} 21... Be8 {[%clk 0:01:46.3]} 22. hxg6 {[%clk
0:01:45.9]} 22... fxg6 {[%clk 0:01:42.8]} 23. Bg5 {[%clk 0:01:45.7]} 23... Qd7
{[%clk 0:01:39.9]} 24. Qe3 {[%clk 0:01:42.2]} 24... Bf7 {[%clk 0:01:34.6]} 25.
Qh3 {[%clk 0:01:37.5]} 25... a6 {[%clk 0:01:24.5]} 26. Qh7+ {[%clk 0:01:34.2]}
26... Kf8 {[%clk 0:01:24.7]} 27. Qxg6 {[%clk 0:01:34.7]} 27... Qe8 {[%clk
0:01:17.8]} 28. Rh7 {[%clk 0:01:32.6]} 1-0

[Event "*** Titled Tuesday 3|2 Blitz"]
[Site "Chess.com"]
[Date "2016.04.05"]
[Round "1"]
[White "ZEN-22"]
[Black "alturas_pacificas"]
[Result "1-0"]
[WhiteElo "2400"]
[BlackElo "2093"]
[TimeControl "180+2"]
[EndTime "11:37:39 PDT"]
[Termination "ZEN-22 won by checkmate"]

1. e4 {[%clk 0:03:01.7]} 1... g6 {[%clk 0:02:58.4]} 2. h4 {[%clk 0:03:01.3]}
2... h6 {[%clk 0:02:58.1]} 3. d4 {[%clk 0:03:01.5]} 3... Bg7 {[%clk 0:02:59]} 4.
h5 {[%clk 0:03:02.6]} 4... g5 {[%clk 0:02:59.8]} 5. f4 {[%clk 0:03:04.1]} 5...
gxf4 {[%clk 0:03:00]} 6. Bxf4 {[%clk 0:03:04.6]} 6... d6 {[%clk 0:03:01.3]} 7.
Nf3 {[%clk 0:03:04.8]} 7... Nd7 {[%clk 0:03:00.9]} 8. e5 {[%clk 0:03:03]} 8...
dxe5 {[%clk 0:02:59.4]} 9. dxe5 {[%clk 0:03:04.3]} 9... e6 {[%clk 0:03:00.6]}
10. Nc3 {[%clk 0:03:04.9]} 10... Ne7 {[%clk 0:03:01.8]} 11. Bb5 {[%clk
0:02:54.2]} 11... c6 {[%clk 0:03:02.2]} 12. Bc4 {[%clk 0:02:49.9]} 12... Nd5
{[%clk 0:03:00.3]} 13. Qd2 {[%clk 0:02:46.5]} 13... a6 {[%clk 0:02:58.6]} 14.
Ne4 {[%clk 0:02:46.4]} 14... O-O {[%clk 0:02:57.1]} 15. Bxh6 {[%clk 0:02:44.9]}
15... Nxe5 {[%clk 0:02:57.1]} 16. Bxg7 {[%clk 0:02:41.2]} 16... Nxf3+ {[%clk
0:02:57.5]} 17. gxf3 {[%clk 0:02:42.2]} 17... Kxg7 {[%clk 0:02:58.7]} 18. Rg1+
{[%clk 0:02:41.4]} 18... Kh7 {[%clk 0:02:49.5]} 19. Ng5+ {[%clk 0:02:41.6]}
19... Kh8 {[%clk 0:02:48.9]} 20. Bxd5 {[%clk 0:02:40.9]} 20... exd5 {[%clk
0:02:44]} 21. Qd4+ {[%clk 0:02:34.1]} 21... f6 {[%clk 0:02:44.5]} 22. O-O-O
{[%clk 0:02:34.5]} 22... Bf5 {[%clk 0:02:33]} 23. Rde1 {[%clk 0:02:10.7]} 23...
Qd7 {[%clk 0:02:33.3]} 24. Qf4 {[%clk 0:01:58.6]} 24... fxg5 {[%clk 0:02:29.1]}
25. Rxg5 {[%clk 0:01:55.8]} 25... Rae8 {[%clk 0:01:48.3]} 26. Rxe8 {[%clk
0:01:53.8]} 26... Rxe8 {[%clk 0:01:41.9]} 27. Rxf5 {[%clk 0:01:51.2]} 27... Re1+
{[%clk 0:01:38]} 28. Kd2 {[%clk 0:01:51.7]} 28... Qe7 {[%clk 0:01:37.5]} 29.
Rf8+ {[%clk 0:01:49.7]} 29... Kg7 {[%clk 0:01:38.3]} 30. h6+ {[%clk 0:01:50.7]}
30... Kg6 {[%clk 0:01:36.1]} 31. Rg8+ {[%clk 0:01:34.8]} 31... Kh5 {[%clk
0:01:30.5]} 32. Qg4+ {[%clk 0:01:34]} 32... Kxh6 {[%clk 0:01:31.1]} 33. Qg6#
{[%clk 0:01:34.9]} 1-0

[Event "*** Titled Tuesday 3|2 Blitz"]
[Site "Chess.com"]
[Date "2016.04.05"]
[Round "1"]
[White "Pomoc"]
[Black "amaidel"]
[Result "0-1"]
[WhiteElo "2146"]
[BlackElo "2462"]
[TimeControl "180+2"]
[EndTime "11:37:56 PDT"]
[Termination "amaidel won by resignation"]

1. e4 {[%clk 0:03:01.5]} 1... e5 {[%clk 0:03:00.4]} 2. Nf3 {[%clk 0:03:01.5]}
2... Nc6 {[%clk 0:03:01.2]} 3. Nc3 {[%clk 0:02:58.1]} 3... g6 {[%clk 0:03:01.2]}
4. d4 {[%clk 0:02:57]} 4... exd4 {[%clk 0:03:02.4]} 5. Nxd4 {[%clk 0:02:56]}
5... Bg7 {[%clk 0:03:03.2]} 6. Be3 {[%clk 0:02:55.3]} 6... Nf6 {[%clk
0:02:58.5]} 7. f3 {[%clk 0:02:51.9]} 7... O-O {[%clk 0:02:58.6]} 8. Qd2 {[%clk
0:02:51.7]} 8... d5 {[%clk 0:02:58.2]} 9. Nxc6 {[%clk 0:02:45.4]} 9... bxc6
{[%clk 0:03:00.1]} 10. O-O-O {[%clk 0:02:35.2]} 10... Be6 {[%clk 0:02:58]} 11.
e5 {[%clk 0:02:34]} 11... Nd7 {[%clk 0:02:58.1]} 12. f4 {[%clk 0:02:32.1]} 12...
f6 {[%clk 0:02:49.4]} 13. Bd4 {[%clk 0:02:21.8]} 13... fxe5 {[%clk 0:02:48.1]}
14. fxe5 {[%clk 0:02:21.8]} 14... Nxe5 {[%clk 0:02:27.7]} 15. Be2 {[%clk
0:02:10.5]} 15... Qd6 {[%clk 0:02:21.7]} 16. Rhf1 {[%clk 0:02:05.1]} 16... c5
{[%clk 0:02:19.3]} 17. Bxe5 {[%clk 0:01:58.3]} 17... Qxe5 {[%clk 0:02:20.4]} 18.
Bf3 {[%clk 0:01:47.9]} 18... c6 {[%clk 0:02:15.1]} 19. Rfe1 {[%clk 0:01:38.9]}
19... Qf6 {[%clk 0:02:14.4]} 20. Rf1 {[%clk 0:01:10.7]} 20... Qh4 {[%clk
0:02:11.9]} 21. Kb1 {[%clk 0:01:07.6]} 21... Rab8 {[%clk 0:02:11.1]} 22. Rde1
{[%clk 0:01:03.4]} 22... Rxb2+ {[%clk 0:02:06.8]} 23. Kxb2 {[%clk 0:01:00.1]}
23... Qb4+ {[%clk 0:02:07.3]} 24. Kc1 {[%clk 0:00:58.9]} 24... Bxc3 {[%clk
0:02:07.6]} 25. Qd3 {[%clk 0:00:29.3]} 25... Bxe1 {[%clk 0:01:55.1]} 0-1

[Event "*** Titled Tuesday 3|2 Blitz"]
[Site "Chess.com"]
[Date "2016.04.05"]
[Round "1"]
[White "AlexanderL"]
[Black "cheese111"]
[Result "1-0"]
[WhiteElo "2574"]
[BlackElo "2290"]
[TimeControl "180+2"]
[EndTime "11:37:57 PDT"]
[Termination "AlexanderL won on time"]

1. d4 {[%clk 0:03:01.9]} 1... Nf6 {[%clk 0:03:00.4]} 2. Bf4 {[%clk 0:03:00.7]}
2... g6 {[%clk 0:03:00]} 3. e3 {[%clk 0:03:00.7]} 3... Bg7 {[%clk 0:03:00.4]} 4.
h3 {[%clk 0:03:02]} 4... d6 {[%clk 0:03:00.8]} 5. Nf3 {[%clk 0:03:03.2]} 5...
O-O {[%clk 0:03:01.5]} 6. Be2 {[%clk 0:03:03.7]} 6... c5 {[%clk 0:03:02.2]} 7.
O-O {[%clk 0:03:04.3]} 7... Qb6 {[%clk 0:02:59.2]} 8. Na3 {[%clk 0:03:02.2]}
8... Be6 {[%clk 0:02:28]} 9. Ng5 {[%clk 0:02:58.5]} 9... Qxb2 {[%clk 0:01:39.3]}
10. Nxe6 {[%clk 0:02:57.5]} 10... fxe6 {[%clk 0:01:40.3]} 11. Nb5 {[%clk
0:02:53.4]} 11... Nd5 {[%clk 0:01:21.9]} 12. Bc4 {[%clk 0:02:54.3]} 12... Nc3
{[%clk 0:00:37.4]} 13. Nxc3 {[%clk 0:02:49.5]} 13... Qxc3 {[%clk 0:00:39.3]} 14.
Bxe6+ {[%clk 0:02:50.5]} 14... Kh8 {[%clk 0:00:40.5]} 15. Rb1 {[%clk 0:02:50]}
15... cxd4 {[%clk 0:00:14.5]} 16. Rxb7 {[%clk 0:02:47.5]} 16... Nc6 {[%clk
0:00:14.7]} 17. Bd5 {[%clk 0:02:43.4]} 17... dxe3 {[%clk 0:00:14.6]} 18. Bxe3
{[%clk 0:02:42.9]} 18... Rac8 {[%clk 0:00:06.8]} 19. Bxc6 {[%clk 0:02:29.7]}
19... Qxc6 {[%clk 0:00:05.5]} 20. Rxe7 {[%clk 0:02:30.4]} 20... Qxc2 {[%clk
0:00:06.2]} 21. Bd4 {[%clk 0:02:09.3]} 21... Rg8 {[%clk 0:00:03.4]} 22. Qa1
{[%clk 0:01:56.1]} 1-0

[Event "*** Titled Tuesday 3|2 Blitz"]
[Site "Chess.com"]
[Date "2016.04.05"]
[Round "1"]
[White "MateusViageiro"]
[Black "JusticeBot"]
[Result "1-0"]
[WhiteElo "2279"]
[BlackElo "2548"]
[TimeControl "180+2"]
[EndTime "11:38:09 PDT"]
[Termination "MateusViageiro won by resignation"]

1. e4 {[%clk 0:02:59.3]} 1... e5 {[%clk 0:03:00.9]} 2. Nf3 {[%clk 0:02:58.9]}
2... Nc6 {[%clk 0:03:02.4]} 3. Bb5 {[%clk 0:03:00.3]} 3... a6 {[%clk 0:03:03.8]}
4. Ba4 {[%clk 0:03:01.7]} 4... Nf6 {[%clk 0:03:05.3]} 5. Bxc6 {[%clk 0:03:03.3]}
5... dxc6 {[%clk 0:03:06]} 6. d3 {[%clk 0:03:04.8]} 6... Qe7 {[%clk 0:02:27.5]}
7. Nbd2 {[%clk 0:03:03.1]} 7... Bg4 {[%clk 0:02:17.4]} 8. h3 {[%clk 0:03:02.9]}
8... Bh5 {[%clk 0:02:19]} 9. g4 {[%clk 0:03:02.2]} 9... Bg6 {[%clk 0:02:20.6]}
10. Nc4 {[%clk 0:03:02.8]} 10... Nd7 {[%clk 0:02:21.9]} 11. Qe2 {[%clk
0:03:02.9]} 11... f6 {[%clk 0:02:19.2]} 12. Bd2 {[%clk 0:02:53.2]} 12... O-O-O
{[%clk 0:02:12.5]} 13. O-O-O {[%clk 0:02:52.4]} 13... Kb8 {[%clk 0:02:12.7]} 14.
Kb1 {[%clk 0:02:52.8]} 14... Nc5 {[%clk 0:02:12.5]} 15. Nh4 {[%clk 0:02:49.1]}
15... Bf7 {[%clk 0:02:12.8]} 16. Nf5 {[%clk 0:02:48.9]} 16... Qe6 {[%clk
0:02:13.9]} 17. b3 {[%clk 0:02:43.3]} 17... g6 {[%clk 0:02:11.9]} 18. Ng3 {[%clk
0:02:41.7]} 18... b6 {[%clk 0:01:48.7]} 19. f4 {[%clk 0:02:41.3]} 19... a5
{[%clk 0:01:30.6]} 20. fxe5 {[%clk 0:02:39]} 20... fxe5 {[%clk 0:01:32]} 21.
Rhf1 {[%clk 0:02:36.6]} 21... Bg7 {[%clk 0:01:28.3]} 22. Qf2 {[%clk 0:02:34.3]}
22... Rhf8 {[%clk 0:01:27.8]} 23. Nxa5 {[%clk 0:02:31.6]} 23... Nxd3 {[%clk
0:00:53.6]} 24. cxd3 {[%clk 0:02:31]} 24... bxa5 {[%clk 0:00:53.5]} 25. Bxa5
{[%clk 0:02:26.1]} 25... Kb7 {[%clk 0:00:50.7]} 26. Bb4 {[%clk 0:02:25.4]} 26...
Bh6 {[%clk 0:00:30.7]} 27. Bxf8 {[%clk 0:02:24.8]} 27... Rxf8 {[%clk 0:00:31.9]}
28. Qc5 {[%clk 0:02:24.9]} 28... Ra8 {[%clk 0:00:29.1]} 29. Ne2 {[%clk 0:02:12]}
29... Rxa2 {[%clk 0:00:28.9]} 30. Qb4+ {[%clk 0:02:12.5]} 30... Kc8 {[%clk
0:00:26.4]} 31. Kxa2 {[%clk 0:02:13.4]} 31... c5 {[%clk 0:00:27.2]} 32. Qc4
{[%clk 0:02:10]} 1-0